[Event "January 2 Late 2024"]
[Site "https://www.chess.com"]
[Date "2024.01.02"]
[Round "2"]
[White "Mizzi, Jack"]
[Black "hoshiboshi"]
[Result "1/2-1/2"]
[Board "220"]
[TimeControl "180+1"]
[WhiteFideId "5602521"]
[WhiteElo "2437"]
[BlackElo "2139"]
[WhiteTeam "MLT"]
[WhiteClock "0:00:09"]
[BlackClock "0:00:06"]

1. d4 {[%clk 0:02:40]}  Nf6 {[%clk 0:02:59]} 2. c4 {[%clk 0:02:36]}  e6 {[%clk 0:02:59]} 3. g3 {[%clk 0:02:36]}  d5 {[%clk 0:02:58]} 4. Bg2 {[%clk 0:02:36]}  dxc4 {[%clk 0:02:55]} 5. Nf3 {[%clk 0:02:36]}  Nbd7 {[%clk 0:02:54]} 6. O-O {[%clk 0:02:36]}  c6 {[%clk 0:02:53]} 7. a4 {[%clk 0:02:35]}  b6 {[%clk 0:02:48]} 8. Nbd2 {[%clk 0:02:32]}  Bb7 {[%clk 0:02:43]} 9. Nxc4 {[%clk 0:02:31]}  Be7 {[%clk 0:02:39]} 10. Nfe5 {[%clk 0:02:31]}  Nxe5 {[%clk 0:02:35]} 11. dxe5 {[%clk 0:02:28]}  Nd5 {[%clk 0:02:32]} 12. e4 {[%clk 0:02:27]}  Nb4 {[%clk 0:02:28]} 13. Nd6+ {[%clk 0:02:25]}  Bxd6 {[%clk 0:02:28]} 14. exd6 {[%clk 0:02:26]}  O-O {[%clk 0:01:42]} 15. b3 {[%clk 0:02:21]}  e5 {[%clk 0:01:33]} 16. Ba3 {[%clk 0:02:07]}  a5 {[%clk 0:01:26]} 17. Qd2 {[%clk 0:02:00]}  c5 {[%clk 0:01:21]} 18. f4 {[%clk 0:02:00]}  Re8 {[%clk 0:01:15]} 19. fxe5 {[%clk 0:01:15]}  Rxe5 {[%clk 0:01:10]} 20. Bb2 {[%clk 0:01:14]}  Re6 {[%clk 0:01:04]} 21. e5 {[%clk 0:01:03]}  Bxg2 {[%clk 0:01:01]} 22. Kxg2 {[%clk 0:00:48]}  Qd7 {[%clk 0:00:52]} 23. Kg1 {[%clk 0:00:44]}  Nc6 {[%clk 0:00:41]} 24. Qd5 {[%clk 0:00:42]}  Rae8 {[%clk 0:00:38]} 25. Rfe1 {[%clk 0:00:39]}  Ne7 {[%clk 0:00:27]} 26. Qf3 {[%clk 0:00:36]}  Ng6 {[%clk 0:00:26]} 27. Qf5 {[%clk 0:00:25]}  f6 {[%clk 0:00:23]} 28. Rad1 {[%clk 0:00:18]}  fxe5 {[%clk 0:00:23]} 29. Qd3 {[%clk 0:00:12]}  Rd8 {[%clk 0:00:20]} 30. Qc4 {[%clk 0:00:12]}  Kh8 {[%clk 0:00:19]} 31. Qe4 {[%clk 0:00:06]}  Rxd6 {[%clk 0:00:17]} 32. Rxd6 {[%clk 0:00:06]}  Qxd6 {[%clk 0:00:18]} 33. Bxe5 {[%clk 0:00:06]}  Nxe5 {[%clk 0:00:18]} 34. Qxe5 {[%clk 0:00:06]}  Qd4+ {[%clk 0:00:15]} 35. Qxd4 {[%clk 0:00:06]}  cxd4 {[%clk 0:00:16]} 36. Kf2 {[%clk 0:00:05]}  Kg8 {[%clk 0:00:16]} 37. Re7 {[%clk 0:00:04]}  Rd6 {[%clk 0:00:12]} 38. Ke2 {[%clk 0:00:03]}  Kf8 {[%clk 0:00:12]} 39. Rb7 {[%clk 0:00:03]}  h5 {[%clk 0:00:10]} 40. Kd3 {[%clk 0:00:03]}  Kg8 {[%clk 0:00:09]} 41. h3 {[%clk 0:00:02]}  Kh7 {[%clk 0:00:10]} 42. h4 {[%clk 0:00:02]}  Kg6 {[%clk 0:00:10]} 43. Rc7 {[%clk 0:00:03]}  Kf6 {[%clk 0:00:10]} 44. Rb7 {[%clk 0:00:02]}  g5 {[%clk 0:00:08]} 45. hxg5+ {[%clk 0:00:02]}  Kxg5 {[%clk 0:00:09]} 46. Rc7 {[%clk 0:00:03]}  Kg4 {[%clk 0:00:08]} 47. Rg7+ {[%clk 0:00:03]}  Kh3 {[%clk 0:00:08]} 48. Rg5 {[%clk 0:00:03]}  h4 {[%clk 0:00:06]} 49. gxh4 {[%clk 0:00:03]}  Kxh4 {[%clk 0:00:07]} 50. Re5 {[%clk 0:00:04]}  Kg4 {[%clk 0:00:06]} 51. Re4+ {[%clk 0:00:04]}  Kf5 {[%clk 0:00:05]} 52. Rxd4 {[%clk 0:00:05]}  Ke5 {[%clk 0:00:06]} 53. Rxd6 {[%clk 0:00:03]}  Kxd6 {[%clk 0:00:07]} 54. Kc3 {[%clk 0:00:03]}  Kc5 {[%clk 0:00:06]} 55. Kc2 {[%clk 0:00:03]}  Kc6 {[%clk 0:00:04]} 56. Kc3 {[%clk 0:00:03]}  Kc5 {[%clk 0:00:04]} 57. Kc2 {[%clk 0:00:03]}  Kc6 {[%clk 0:00:05]} 58. Kb2 {[%clk 0:00:04]}  Kc5 {[%clk 0:00:05]} 59. Kc3 {[%clk 0:00:05]}  Kc6 {[%clk 0:00:03]} 60. Kc4 {[%clk 0:00:06]}  Kc7 {[%clk 0:00:01]} 61. Kd5 {[%clk 0:00:06]}  Kd7 {[%clk 0:00:02]} 62. Ke4 {[%clk 0:00:06]}  Ke6 {[%clk 0:00:02]} 63. Kd4 {[%clk 0:00:06]}  Kd6 {[%clk 0:00:02]} 64. Kd3 {[%clk 0:00:07]}  Kd5 {[%clk 0:00:03]} 65. Kd2 {[%clk 0:00:06]}  Kd4 {[%clk 0:00:03]} 66. Kc2 {[%clk 0:00:07]}  Kc5 {[%clk 0:00:03]} 67. Kc3 {[%clk 0:00:07]}  Kc6 {[%clk 0:00:04]} 68. Kc4 {[%clk 0:00:07]}  Kc7 {[%clk 0:00:03]} 69. Kd4 {[%clk 0:00:05]}  Kd6 {[%clk 0:00:03]} 70. Kc4 {[%clk 0:00:06]}  Kc6 {[%clk 0:00:04]} 71. b4 {[%clk 0:00:06]}  axb4 {[%clk 0:00:03]} 72. Kxb4 {[%clk 0:00:07]}  Kc7 {[%clk 0:00:04]} 73. Kc4 {[%clk 0:00:07]}  Kc6 {[%clk 0:00:04]} 74. Kd4 {[%clk 0:00:07]}  Kd6 {[%clk 0:00:04]} 75. Kd3 {[%clk 0:00:07]}  Kd5 {[%clk 0:00:04]} 76. Kc3 {[%clk 0:00:07]}  Kc5 {[%clk 0:00:05]} 77. Kb3 {[%clk 0:00:07]}  Kc6 {[%clk 0:00:05]} 78. Kb4 {[%clk 0:00:08]}  Kc7 {[%clk 0:00:05]} 79. Kb5 {[%clk 0:00:08]}  Kb7 {[%clk 0:00:06]} 80. Kb4 {[%clk 0:00:09]}  Kc7 {[%clk 0:00:06]} 1/2-1/2

[Event "January 2 Late 2024"]
[Site "https://www.chess.com"]
[Date "2024.01.02"]
[Round "2"]
[White "Novikova, Margarita"]
[Black "Federzoni, Enzo"]
[Result "1-0"]
[Board "221"]
[TimeControl "180+1"]
[WhiteFideId "14109689"]
[BlackFideId "2173301"]
[WhiteElo "2131"]
[BlackElo "2437"]
[WhiteTeam "GER"]
[BlackTeam "BRA"]
[WhiteClock "0:00:52"]
[BlackClock "0:00:20"]

1. e4 {[%clk 0:02:58]}  e5 {[%clk 0:02:57]} 2. Nf3 {[%clk 0:02:57]}  Nc6 {[%clk 0:02:57]} 3. Bc4 {[%clk 0:02:57]}  a6 {[%clk 0:02:57]} 4. c3 {[%clk 0:02:57]}  d6 {[%clk 0:02:56]} 5. h3 {[%clk 0:02:56]}  Be7 {[%clk 0:02:53]} 6. d4 {[%clk 0:02:56]}  Nf6 {[%clk 0:02:46]} 7. Qe2 {[%clk 0:02:54]}  O-O {[%clk 0:02:38]} 8. O-O {[%clk 0:02:54]}  exd4 {[%clk 0:02:25]} 9. cxd4 {[%clk 0:02:53]}  d5 {[%clk 0:02:26]} 10. exd5 {[%clk 0:02:49]}  Nxd5 {[%clk 0:02:26]} 11. Nc3 {[%clk 0:02:49]}  Be6 {[%clk 0:02:22]} 12. Nxd5 {[%clk 0:02:42]}  Bxd5 {[%clk 0:02:23]} 13. Bxd5 {[%clk 0:02:41]}  Qxd5 {[%clk 0:02:24]} 14. Be3 {[%clk 0:02:29]}  Bf6 {[%clk 0:02:22]} 15. Rfd1 {[%clk 0:02:28]}  Rfe8 {[%clk 0:02:19]} 16. Qd3 {[%clk 0:02:28]}  Rad8 {[%clk 0:02:18]} 17. Rac1 {[%clk 0:02:26]}  Qxa2 {[%clk 0:02:14]} 18. Qc2 {[%clk 0:02:09]}  Qd5 {[%clk 0:02:08]} 19. Qa4 {[%clk 0:02:06]}  Rd7 {[%clk 0:02:02]} 20. Rd2 {[%clk 0:02:06]}  Red8 {[%clk 0:01:59]} 21. Rc5 {[%clk 0:02:06]}  Qe6 {[%clk 0:01:53]} 22. Qd1 {[%clk 0:02:03]}  h6 {[%clk 0:01:53]} 23. d5 {[%clk 0:02:01]}  Qe7 {[%clk 0:01:48]} 24. dxc6 {[%clk 0:01:55]}  Rxd2 {[%clk 0:01:48]} 25. Nxd2 {[%clk 0:01:55]}  b6 {[%clk 0:01:48]} 26. Rc2 {[%clk 0:01:47]}  Be5 {[%clk 0:01:43]} 27. Qf3 {[%clk 0:01:27]}  a5 {[%clk 0:01:35]} 28. g3 {[%clk 0:01:27]}  b5 {[%clk 0:01:33]} 29. Kg2 {[%clk 0:01:27]}  a4 {[%clk 0:01:31]} 30. Bc5 {[%clk 0:01:22]}  Qe6 {[%clk 0:01:27]} 31. Nf1 {[%clk 0:01:15]}  Rd5 {[%clk 0:01:22]} 32. Ne3 {[%clk 0:01:14]}  Rd3 {[%clk 0:01:22]} 33. Qe4 {[%clk 0:01:11]}  Rd8 {[%clk 0:01:17]} 34. f4 {[%clk 0:01:11]}  Bf6 {[%clk 0:01:06]} 35. Qxe6 {[%clk 0:01:11]}  fxe6 {[%clk 0:01:07]} 36. Kf3 {[%clk 0:01:08]}  Kf7 {[%clk 0:01:01]} 37. Ke4 {[%clk 0:01:01]}  h5 {[%clk 0:00:56]} 38. g4 {[%clk 0:01:00]}  hxg4 {[%clk 0:00:50]} 39. hxg4 {[%clk 0:01:01]}  Rb8 {[%clk 0:00:37]} 40. g5 {[%clk 0:01:01]}  Bd8 {[%clk 0:00:35]} 41. Bb4 {[%clk 0:00:57]}  Rb6 {[%clk 0:00:31]} 42. Ng4 {[%clk 0:00:56]}  Ra6 {[%clk 0:00:28]} 43. Ne5+ {[%clk 0:00:56]}  Ke8 {[%clk 0:00:29]} 44. Rh2 {[%clk 0:00:53]}  Be7 {[%clk 0:00:20]} 45. Rh8+ {[%clk 0:00:52]}  Bf8 {[%clk 0:00:20]} 46. Rxf8# {[%clk 0:00:52]} 1-0

[Event "January 2 Late 2024"]
[Site "https://www.chess.com"]
[Date "2024.01.02"]
[Round "2"]
[White "Aung Thant Zin"]
[Black "Salman, Ilhan Serhat"]
[Result "0-1"]
[Board "224"]
[TimeControl "180+1"]
[WhiteFideId "13000063"]
[BlackFideId "6361579"]
[WhiteElo "2117"]
[BlackElo "2436"]
[WhiteTeam "MYA"]
[BlackTeam "TUR"]
[WhiteClock "0:00:00"]
[BlackClock "0:01:04"]

1. e4 {[%clk 0:03:00]}  d5 {[%clk 0:02:58]} 2. exd5 {[%clk 0:02:59]}  Qxd5 {[%clk 0:02:59]} 3. Nc3 {[%clk 0:02:58]}  Qa5 {[%clk 0:02:59]} 4. g3 {[%clk 0:02:55]}  Nf6 {[%clk 0:02:59]} 5. Bg2 {[%clk 0:02:53]}  c6 {[%clk 0:02:57]} 6. Nge2 {[%clk 0:02:52]}  Bg4 {[%clk 0:02:58]} 7. d3 {[%clk 0:02:50]}  e6 {[%clk 0:02:58]} 8. Bd2 {[%clk 0:02:49]}  Qc7 {[%clk 0:02:56]} 9. O-O {[%clk 0:02:46]}  Bd6 {[%clk 0:02:57]} 10. a4 {[%clk 0:02:44]}  Nbd7 {[%clk 0:02:57]} 11. a5 {[%clk 0:02:43]}  O-O {[%clk 0:02:57]} 12. h3 {[%clk 0:02:40]}  Bh5 {[%clk 0:02:56]} 13. Qe1 {[%clk 0:02:35]}  Rfd8 {[%clk 0:02:52]} 14. Nf4 {[%clk 0:02:34]}  Bg6 {[%clk 0:02:50]} 15. Nxg6 {[%clk 0:02:33]}  hxg6 {[%clk 0:02:51]} 16. Ne4 {[%clk 0:02:31]}  Nxe4 {[%clk 0:02:48]} 17. Qxe4 {[%clk 0:02:31]}  Nf6 {[%clk 0:02:49]} 18. Qf3 {[%clk 0:02:31]}  Nd5 {[%clk 0:02:36]} 19. a6 {[%clk 0:02:22]}  bxa6 {[%clk 0:02:27]} 20. Rxa6 {[%clk 0:02:17]}  Qb7 {[%clk 0:02:27]} 21. Ra2 {[%clk 0:02:14]}  Rac8 {[%clk 0:02:23]} 22. Rfa1 {[%clk 0:02:09]}  a6 {[%clk 0:02:18]} 23. b3 {[%clk 0:02:08]}  Bb4 {[%clk 0:02:11]} 24. Bg5 {[%clk 0:01:47]}  Re8 {[%clk 0:02:00]} 25. Rxa6 {[%clk 0:01:42]}  Bc5 {[%clk 0:01:56]} 26. c4 {[%clk 0:01:17]}  Nb4 {[%clk 0:01:50]} 27. R6a4 {[%clk 0:01:17]}  Nc2 {[%clk 0:01:47]} 28. R1a2 {[%clk 0:01:02]}  Qxb3 {[%clk 0:01:45]} 29. Qd1 {[%clk 0:00:54]}  Nd4 {[%clk 0:01:32]} 30. Qxb3 {[%clk 0:00:53]}  Nxb3 {[%clk 0:01:33]} 31. Ra6 {[%clk 0:00:52]}  Nd4 {[%clk 0:01:29]} 32. Be3 {[%clk 0:00:49]}  Red8 {[%clk 0:01:25]} 33. Bxd4 {[%clk 0:00:48]}  Rxd4 {[%clk 0:01:26]} 34. Bxc6 {[%clk 0:00:29]}  Rxd3 {[%clk 0:01:18]} 35. Kg2 {[%clk 0:00:29]}  Rd6 {[%clk 0:01:16]} 36. Bb5 {[%clk 0:00:28]}  Rcd8 {[%clk 0:01:15]} 37. Re2 {[%clk 0:00:26]}  Rd2 {[%clk 0:01:14]} 38. Ra2 {[%clk 0:00:26]}  Rd1 {[%clk 0:01:12]} 39. h4 {[%clk 0:00:25]}  Rc1 {[%clk 0:01:12]} 40. Rad2 {[%clk 0:00:20]}  Ra8 {[%clk 0:01:10]} 41. Kf3 {[%clk 0:00:15]}  Ra3+ {[%clk 0:01:10]} 42. Kg2 {[%clk 0:00:15]}  Raa1 {[%clk 0:01:09]} 43. Rd7 {[%clk 0:00:14]}  Rg1+ {[%clk 0:01:08]} 44. Kf3 {[%clk 0:00:10]}  Ra3+ {[%clk 0:01:08]} 45. Ke4 {[%clk 0:00:00]}  Rf1 {[%clk 0:01:04]} 0-1

[Event "January 2 Late 2024"]
[Site "https://www.chess.com"]
[Date "2024.01.02"]
[Round "2"]
[White "Spichkin, Alexander"]
[Black "Torres Hernandez, Leslie Carolin"]
[Result "1-0"]
[Board "226"]
[TimeControl "180+1"]
[WhiteFideId "4144074"]
[BlackFideId "8400504"]
[WhiteElo "2433"]
[BlackElo "2085"]
[WhiteTeam "RUS"]
[BlackTeam "HON"]
[WhiteClock "0:02:31"]
[BlackClock "0:00:00"]

1. f4 {[%clk 0:02:59]}  Nh6 {[%clk 0:00:51]} 2. Nf3 {[%clk 0:02:58]}  e6 {[%clk 0:00:44]} 3. d3 {[%clk 0:02:59]}  d5 {[%clk 0:00:42]} 4. e3 {[%clk 0:02:59]}  Nf5 {[%clk 0:00:41]} 5. Be2 {[%clk 0:03:00]}  Be7 {[%clk 0:00:40]} 6. O-O {[%clk 0:03:00]}  c5 {[%clk 0:00:39]} 7. c3 {[%clk 0:03:00]}  Nc6 {[%clk 0:00:39]} 8. Qe1 {[%clk 0:03:00]}  Bd7 {[%clk 0:00:34]} 9. e4 {[%clk 0:02:59]}  dxe4 {[%clk 0:00:32]} 10. dxe4 {[%clk 0:02:58]}  Nd6 {[%clk 0:00:33]} 11. Nbd2 {[%clk 0:02:58]}  Qc7 {[%clk 0:00:28]} 12. Qg3 {[%clk 0:02:57]}  O-O {[%clk 0:00:23]} 13. Ng5 {[%clk 0:02:52]}  h6 {[%clk 0:00:21]} 14. Ngf3 {[%clk 0:02:51]}  Qd8 {[%clk 0:00:16]} 15. f5 {[%clk 0:02:43]}  exf5 {[%clk 0:00:15]} 16. e5 {[%clk 0:02:43]}  Ne4 {[%clk 0:00:15]} 17. Nxe4 {[%clk 0:02:43]}  fxe4 {[%clk 0:00:16]} 18. Bxh6 {[%clk 0:02:43]}  g6 {[%clk 0:00:10]} 19. Bxf8 {[%clk 0:02:43]}  Qxf8 {[%clk 0:00:08]} 20. Ng5 {[%clk 0:02:43]}  Nd8 {[%clk 0:00:05]} 21. Nxe4 {[%clk 0:02:41]}  Qg7 {[%clk 0:00:03]} 22. Bc4 {[%clk 0:02:38]}  Be6 {[%clk 0:00:02]} 23. Bxe6 {[%clk 0:02:34]}  Nxe6 {[%clk 0:00:03]} 24. Nf6+ {[%clk 0:02:35]}  Bxf6 {[%clk 0:00:03]} 25. exf6 {[%clk 0:02:35]}  Qh6 {[%clk 0:00:02]} 26. Rae1 {[%clk 0:02:34]}  Kh7 {[%clk 0:00:00]} 27. Rxe6 {[%clk 0:02:31]} 1-0

[Event "January 2 Late 2024"]
[Site "https://www.chess.com"]
[Date "2024.01.02"]
[Round "2"]
[White "Quirke, Jeffrey"]
[Black "Jaque Gutierrez, Matias"]
[Result "0-1"]
[Board "227"]
[TimeControl "180+1"]
[WhiteFideId "2013029"]
[BlackFideId "3426980"]
[WhiteElo "2078"]
[BlackElo "2432"]
[WhiteTeam "USA"]
[BlackTeam "CHI"]
[WhiteClock "0:00:28"]
[BlackClock "0:01:31"]

1. e4 {[%clk 0:03:00]}  c5 {[%clk 0:02:59]} 2. c3 {[%clk 0:03:00]}  Nf6 {[%clk 0:02:58]} 3. e5 {[%clk 0:03:00]}  Nd5 {[%clk 0:02:59]} 4. Nf3 {[%clk 0:03:00]}  e6 {[%clk 0:02:58]} 5. d4 {[%clk 0:02:58]}  cxd4 {[%clk 0:02:59]} 6. cxd4 {[%clk 0:02:58]}  d6 {[%clk 0:03:00]} 7. Bc4 {[%clk 0:02:58]}  Be7 {[%clk 0:02:59]} 8. O-O {[%clk 0:02:56]}  O-O {[%clk 0:02:59]} 9. Qe2 {[%clk 0:02:56]}  b6 {[%clk 0:02:59]} 10. Rd1 {[%clk 0:02:52]}  Bb7 {[%clk 0:02:58]} 11. Bxd5 {[%clk 0:02:51]}  exd5 {[%clk 0:02:59]} 12. Nc3 {[%clk 0:02:46]}  Na6 {[%clk 0:02:59]} 13. Bf4 {[%clk 0:02:45]}  Nc7 {[%clk 0:02:59]} 14. exd6 {[%clk 0:02:44]}  Bxd6 {[%clk 0:02:59]} 15. Bxd6 {[%clk 0:02:45]}  Qxd6 {[%clk 0:02:59]} 16. Ne5 {[%clk 0:02:44]}  Rae8 {[%clk 0:02:45]} 17. Qf3 {[%clk 0:02:38]}  Ne6 {[%clk 0:02:32]} 18. Nb5 {[%clk 0:01:44]}  Qb4 {[%clk 0:02:30]} 19. a4 {[%clk 0:01:44]}  a6 {[%clk 0:02:07]} 20. Nd3 {[%clk 0:01:26]}  Qe7 {[%clk 0:02:03]} 21. Nc3 {[%clk 0:01:10]}  Nxd4 {[%clk 0:02:02]} 22. Qg4 {[%clk 0:00:56]}  Ne6 {[%clk 0:01:53]} 23. a5 {[%clk 0:00:52]}  d4 {[%clk 0:01:51]} 24. Na4 {[%clk 0:00:38]}  b5 {[%clk 0:01:49]} 25. Nb6 {[%clk 0:00:37]}  f5 {[%clk 0:01:36]} 26. Qh3 {[%clk 0:00:35]}  Ng5 {[%clk 0:01:32]} 27. Qh4 {[%clk 0:00:28]}  Nf3+ {[%clk 0:01:31]} 0-1

[Event "January 2 Late 2024"]
[Site "https://www.chess.com"]
[Date "2024.01.02"]
[Round "2"]
[White "Brandao, Marcius Gomes"]
[Black "Morales Garcia, Sergio Joshafatt"]
[Result "0-1"]
[Board "228"]
[TimeControl "180+1"]
[WhiteFideId "2124980"]
[BlackFideId "5106249"]
[WhiteElo "2077"]
[BlackElo "2432"]
[WhiteTeam "BRA"]
[BlackTeam "MEX"]
[WhiteClock "0:00:36"]
[BlackClock "0:00:27"]

1. d4 {[%clk 0:03:00]}  d5 {[%clk 0:02:59]} 2. c4 {[%clk 0:03:01]}  c6 {[%clk 0:02:59]} 3. cxd5 {[%clk 0:03:00]}  cxd5 {[%clk 0:03:00]} 4. Nc3 {[%clk 0:03:01]}  Nc6 {[%clk 0:03:00]} 5. e3 {[%clk 0:03:01]}  Bf5 {[%clk 0:02:57]} 6. Nf3 {[%clk 0:03:00]}  e6 {[%clk 0:02:56]} 7. Ne5 {[%clk 0:02:56]}  Nxe5 {[%clk 0:02:49]} 8. dxe5 {[%clk 0:02:55]}  Ne7 {[%clk 0:02:49]} 9. Bb5+ {[%clk 0:02:32]}  Nc6 {[%clk 0:02:48]} 10. O-O {[%clk 0:02:32]}  Be7 {[%clk 0:02:42]} 11. g4 {[%clk 0:02:20]}  Bg6 {[%clk 0:02:40]} 12. f4 {[%clk 0:02:20]}  h6 {[%clk 0:02:02]} 13. f5 {[%clk 0:02:12]}  Bh7 {[%clk 0:01:57]} 14. e4 {[%clk 0:02:04]}  Qb6+ {[%clk 0:01:38]} 15. Kg2 {[%clk 0:01:58]}  d4 {[%clk 0:01:25]} 16. Bxc6+ {[%clk 0:01:54]}  Qxc6 {[%clk 0:00:42]} 17. Qxd4 {[%clk 0:01:52]}  O-O {[%clk 0:00:39]} 18. f6 {[%clk 0:01:32]}  Bc5 {[%clk 0:00:38]} 19. Qc4 {[%clk 0:01:22]}  Rfd8 {[%clk 0:00:35]} 20. b4 {[%clk 0:01:15]}  Bd4 {[%clk 0:00:28]} 21. Qxc6 {[%clk 0:01:00]}  bxc6 {[%clk 0:00:29]} 22. Bd2 {[%clk 0:00:44]}  Bxe5 {[%clk 0:00:29]} 23. fxg7 {[%clk 0:00:36]}  Rxd2+ {[%clk 0:00:27]} 0-1

[Event "January 2 Late 2024"]
[Site "https://www.chess.com"]
[Date "2024.01.02"]
[Round "2"]
[White "Vujcic, Milena"]
[Black "Musalov, Ruslan"]
[Result "0-1"]
[Board "233"]
[TimeControl "180+1"]
[WhiteFideId "954748"]
[BlackFideId "4141490"]
[WhiteElo "2034"]
[BlackElo "2424"]
[WhiteTeam "SRB"]
[BlackTeam "RUS"]
[WhiteClock "0:00:09"]
[BlackClock "0:01:50"]

1. e4 {[%clk 0:02:58]}  c5 {[%clk 0:02:59]} 2. Nf3 {[%clk 0:02:58]}  d6 {[%clk 0:03:00]} 3. d4 {[%clk 0:02:59]}  cxd4 {[%clk 0:03:01]} 4. Nxd4 {[%clk 0:02:59]}  Nf6 {[%clk 0:03:02]} 5. Nc3 {[%clk 0:03:00]}  a6 {[%clk 0:03:02]} 6. Bg5 {[%clk 0:03:00]}  Nbd7 {[%clk 0:03:02]} 7. Qe2 {[%clk 0:02:57]}  Qc7 {[%clk 0:03:02]} 8. O-O-O {[%clk 0:02:57]}  e6 {[%clk 0:03:02]} 9. f4 {[%clk 0:02:56]}  Be7 {[%clk 0:03:02]} 10. g4 {[%clk 0:02:55]}  b5 {[%clk 0:03:01]} 11. a3 {[%clk 0:02:51]}  Bb7 {[%clk 0:03:00]} 12. Bg2 {[%clk 0:02:51]}  Rc8 {[%clk 0:02:54]} 13. Bxf6 {[%clk 0:02:50]}  gxf6 {[%clk 0:02:53]} 14. h4 {[%clk 0:02:48]}  Nb6 {[%clk 0:02:50]} 15. g5 {[%clk 0:02:34]}  Nc4 {[%clk 0:02:47]} 16. Rh3 {[%clk 0:02:34]}  Qa5 {[%clk 0:02:42]} 17. Kb1 {[%clk 0:01:05]}  Nxa3+ {[%clk 0:02:40]} 18. bxa3 {[%clk 0:01:00]}  Rxc3 {[%clk 0:02:40]} 19. Nb3 {[%clk 0:00:59]}  Qc7 {[%clk 0:02:31]} 20. Rxc3 {[%clk 0:00:52]}  Qxc3 {[%clk 0:02:32]} 21. gxf6 {[%clk 0:00:48]}  Bxf6 {[%clk 0:02:33]} 22. e5 {[%clk 0:00:47]}  dxe5 {[%clk 0:02:14]} 23. Bxb7 {[%clk 0:00:46]}  e4 {[%clk 0:02:14]} 24. Kc1 {[%clk 0:00:32]}  O-O {[%clk 0:02:05]} 25. Rg1+ {[%clk 0:00:20]}  Kh8 {[%clk 0:02:04]} 26. Qg4 {[%clk 0:00:20]}  Rd8 {[%clk 0:01:57]} 27. Bd5 {[%clk 0:00:15]}  Qb2+ {[%clk 0:01:54]} 28. Kd1 {[%clk 0:00:13]}  Rxd5+ {[%clk 0:01:55]} 29. Ke1 {[%clk 0:00:13]}  Qb1+ {[%clk 0:01:50]} 30. Kf2 {[%clk 0:00:11]}  Qxc2+ {[%clk 0:01:50]} 31. Kg3 {[%clk 0:00:09]}  Qxb3+ {[%clk 0:01:50]} 0-1

[Event "January 2 Late 2024"]
[Site "https://www.chess.com"]
[Date "2024.01.02"]
[Round "2"]
[White "Bellissimo, Joseph F."]
[Black "Oliveira, Tiago Batista"]
[Result "1-0"]
[Board "235"]
[TimeControl "180+1"]
[WhiteFideId "2609843"]
[BlackFideId "2108291"]
[WhiteElo "2423"]
[BlackElo "2026"]
[WhiteTeam "CAN"]
[BlackTeam "BRA"]
[WhiteClock "0:01:45"]
[BlackClock "0:00:02"]

1. e4 {[%clk 0:03:00]}  e5 {[%clk 0:02:59]} 2. Nf3 {[%clk 0:02:59]}  Nc6 {[%clk 0:02:59]} 3. Bc4 {[%clk 0:02:59]}  Bc5 {[%clk 0:02:58]} 4. c3 {[%clk 0:02:58]}  Nf6 {[%clk 0:02:56]} 5. d3 {[%clk 0:02:58]}  h6 {[%clk 0:02:48]} 6. Nbd2 {[%clk 0:02:57]}  d6 {[%clk 0:02:48]} 7. Nf1 {[%clk 0:02:56]}  Bb6 {[%clk 0:02:48]} 8. Ng3 {[%clk 0:02:56]}  Be6 {[%clk 0:02:45]} 9. Bb3 {[%clk 0:02:55]}  Qd7 {[%clk 0:02:44]} 10. Bc2 {[%clk 0:02:53]}  a5 {[%clk 0:02:39]} 11. d4 {[%clk 0:02:52]}  Bc4 {[%clk 0:02:32]} 12. b3 {[%clk 0:02:47]}  Ba6 {[%clk 0:02:30]} 13. d5 {[%clk 0:02:44]}  Ne7 {[%clk 0:02:29]} 14. c4 {[%clk 0:02:45]}  O-O {[%clk 0:02:18]} 15. O-O {[%clk 0:02:43]}  Ng6 {[%clk 0:02:13]} 16. Nf5 {[%clk 0:02:42]}  Kh7 {[%clk 0:01:39]} 17. Bd2 {[%clk 0:02:37]}  Rae8 {[%clk 0:01:29]} 18. Qc1 {[%clk 0:02:36]}  Ng8 {[%clk 0:01:12]} 19. h4 {[%clk 0:02:21]}  c6 {[%clk 0:01:05]} 20. Re1 {[%clk 0:02:13]}  cxd5 {[%clk 0:01:03]} 21. cxd5 {[%clk 0:02:14]}  Rc8 {[%clk 0:01:02]} 22. Qd1 {[%clk 0:02:08]}  Nf6 {[%clk 0:00:57]} 23. h5 {[%clk 0:02:00]}  Ne7 {[%clk 0:00:51]} 24. N3h4 {[%clk 0:01:59]}  Nxf5 {[%clk 0:00:41]} 25. Nxf5 {[%clk 0:01:58]}  Rc7 {[%clk 0:00:14]} 26. Bb1 {[%clk 0:01:47]}  Rfc8 {[%clk 0:00:14]} 27. Qf3 {[%clk 0:01:46]}  Bd4 {[%clk 0:00:13]} 28. Nxd4 {[%clk 0:01:45]}  exd4 {[%clk 0:00:13]} 29. e5+ {[%clk 0:01:45]}  Kg8 {[%clk 0:00:02]} 30. exf6 {[%clk 0:01:45]} 1-0